fUSD/lending_fUSD_20251103
["ID","MTS","AMOUNT","RATE_DAILY","PERIOD"]
[392967084,1762186235389,-193.41210668,0.00014968,2]
[392967085,1762186235398,-357.30604888,0.00014968,2]
[392967086,1762186235407,-168.78362523,0.00014968,2]
[392967087,1762186235417,-503.42349138,0.00014968,2]
[392967088,1762186235427,-500.0,0.00014972,2]
[392967089,1762186235436,-503.1607013,0.00014973,2]
[392967090,1762186235446,-500.0,0.00014973,2]
[392967091,1762186235455,-160.61080249,0.00014973,2]
[392967092,1762186235465,-505.37805286,0.00014973,2]
[392967093,1762186235474,-500.0,0.00014973,2]
[392967094,1762186235484,-500.0,0.00014973,2]
[392967095,1762186235494,-500.0,0.00014973,2]
[392967096,1762186235504,-500.0,0.00014973,2]
[392967097,1762186235513,-502.96708675,0.00014973,2]
[392967098,1762186235522,-500.0,0.00014973,2]
[392967099,1762186235537,-501.13924348,0.00014973,2]
[392967100,1762186235546,-296.56440007,0.00014986,2]
[392967101,1762186235556,-152.45231427,0.00014986,2]
[392967102,1762186235566,-181.26603437,0.00014986,2]
[392967103,1762186235575,-287.16679279,0.00014986,2]
[392967104,1762186235585,-151.8412202,0.00014986,2]
[392967105,1762186235594,-191.53775451,0.00014986,2]
[392967106,1762186235604,-251.62954776,0.00014986,2]
[392967107,1762186235614,-186.2923937,0.00014986,2]
[392967108,1762186235624,-246.91336108,0.00014986,2]
[392967109,1762186235633,-201.35070306,0.00014986,2]
[392967110,1762186235643,-255.56280565,0.00014986,2]
[392967111,1762186235653,-181.86436565,0.00014986,2]
[392967112,1762186235662,-157.82063715,0.00014986,2]
[392967113,1762186235672,-164.58940059,0.00014986,2]
[392967114,1762186235681,-150.00000001,0.00014986,2]
[392967115,1762186235691,-182.95396817,0.00014986,2]
[392967116,1762186235700,-233.04519498,0.0001499,2]
[392967117,1762186235709,-233.04519498,0.0001499,2]
[392967118,1762186235719,-233.04519498,0.0001499,2]
[392967119,1762186235728,-500.0,0.00014996,2]
[392967120,1762186235737,-500.0,0.00014996,2]
[392967121,1762186235749,-151.0,0.00014997,2]
[392967122,1762186235758,-500.0,0.00014998,2]
[392967123,1762186235768,-500.0,0.00014999,2]
[392967124,1762186235779,-500.0,0.00014999,2]
[392967125,1762186235789,-500.0,0.00014999,2]
[392967126,1762186235798,-500.0,0.00014999,2]
[392967127,1762186235807,-500.0,0.00014999,2]
[392967128,1762186235817,-500.0,0.00014999,2]
[392967129,1762186235826,-500.0,0.00014999,2]
[392967130,1762186235836,-500.0,0.00014999,2]
[392967131,1762186235845,-500.0,0.00014999,2]
[392967132,1762186235854,-500.0,0.00014999,2]
[392967133,1762186235864,-500.0,0.00014999,2]
[392967134,1762186235873,-500.0,0.00014999,2]
[392967135,1762186235882,-500.0,0.00014999,2]
[392967136,1762186235891,-462.55578228,0.00014999,2]
[392967137,1762186235901,-500.0,0.00014999,2]
[392967138,1762186235910,-500.0,0.00014999,2]
[392967139,1762186235919,-500.0,0.00014999,2]
[392967140,1762186235929,-500.0,0.00014999,2]
[392967141,1762186235938,-500.0,0.00014999,2]
[392967142,1762186235947,-500.0,0.00014999,2]
[392967143,1762186235956,-500.0,0.00014999,2]
[392967144,1762186235965,-500.0,0.00014999,2]
[392967145,1762186235975,-500.0,0.00014999,2]
[392967146,1762186235985,-500.0,0.00014999,2]
[392967147,1762186235994,-523.13811093,0.00014999,2]
[392967148,1762186236003,-500.0,0.00014999,2]
[392967149,1762186236012,-500.0,0.00014999,2]
[392967150,1762186236021,-224.33769493,0.00014999,2]
[392967151,1762186236039,-500.0,0.00014999,2]
[392967152,1762186236049,-500.0,0.00014999,2]
[392967153,1762186236059,-500.0,0.00014999,2]
[392967154,1762186236070,-500.0,0.00014999,2]
[392967155,1762186236080,-500.0,0.00014999,2]
[392967156,1762186236091,-500.0,0.00014999,2]
[392967157,1762186236102,-500.0,0.00014999,2]
[392967158,1762186236112,-500.0,0.00014999,2]
[392967159,1762186236123,-500.0,0.00014999,2]
[392967160,1762186236136,-500.0,0.00014999,2]
[392967161,1762186236147,-500.0,0.00014999,2]
[392967162,1762186236157,-500.0,0.00014999,2]
[392967163,1762186236172,-500.0,0.00014999,2]
[392967164,1762186236182,-500.0,0.00014999,2]
[392967165,1762186236194,-500.0,0.00014999,2]
[392967166,1762186236205,-439.43602615,0.00014999,2]
[392967167,1762186236215,-500.0,0.00014999,2]
[392967168,1762186236225,-500.0,0.00014999,2]
[392967169,1762186236235,-538.35028513,0.00014999,2]
[392967170,1762186236245,-500.0,0.00014999,2]
[392967171,1762186236254,-500.0,0.00014999,2]
[392967172,1762186236264,-500.0,0.00014999,2]
[392967173,1762186236274,-500.0,0.00014999,2]
[392967174,1762186236292,-500.0,0.00014999,2]
[392967175,1762186236302,-500.0,0.00014999,2]
[392967176,1762186236311,-423.40074217,0.00014999,2]
[392967177,1762186236321,-500.0,0.00014999,2]
[392967178,1762186236330,-500.0,0.00014999,2]
[392967179,1762186236340,-500.0,0.00014999,2]
[392967180,1762186236349,-500.0,0.00014999,2]
[392967181,1762186236358,-299.55122439,0.00014999,2]
[392967182,1762186236368,-511.44029606,0.00014999,2]
[392967183,1762186236378,-500.0,0.00014999,2]
[392967184,1762186236388,-500.0,0.00014999,2]
[392967185,1762186236398,-500.0,0.00014999,2]
[392967186,1762186236407,-500.0,0.00014999,2]
[392967187,1762186236417,-500.0,0.00014999,2]
[392967188,1762186236426,-500.0,0.00014999,2]
[392967189,1762186236437,-500.0,0.00014999,2]
[392967190,1762186236446,-500.0,0.00014999,2]
[392967191,1762186236456,-500.0,0.00014999,2]
[392967192,1762186236465,-500.0,0.00014999,2]
[392967193,1762186236474,-500.0,0.00014999,2]
[392967194,1762186236484,-500.0,0.00014999,2]
[392967195,1762186236494,-500.0,0.00014999,2]
[392967196,1762186236503,-500.0,0.00014999,2]
[392967197,1762186236513,-500.0,0.00014999,2]
[392967198,1762186236523,-500.0,0.00014999,2]
[392967199,1762186236537,-500.0,0.00014999,2]
[392967200,1762186236547,-500.0,0.00014999,2]
[392967201,1762186236556,-500.0,0.00014999,2]
[392967202,1762186236566,-500.0,0.00014999,2]
[392967203,1762186236575,-500.0,0.00014999,2]
[392967204,1762186236584,-500.0,0.00014999,2]
[392967205,1762186236595,-500.0,0.00014999,2]
[392967206,1762186236604,-500.0,0.00014999,2]
[392967207,1762186236614,-500.0,0.00014999,2]
[392967208,1762186236625,-500.0,0.00014999,2]
[392967209,1762186236634,-500.0,0.00014999,2]
[392967210,1762186236644,-500.0,0.00014999,2]
[392967211,1762186236654,-500.0,0.00014999,2]
[392967212,1762186236664,-500.0,0.00014999,2]
[392967213,1762186236673,-484.15498495,0.00014999,2]
[392967214,1762186236682,-62784.63789741,0.00015,2]
[392967215,1762186236723,-99770.3585622,0.00015,2]
[392967216,1762186236734,-87292.09761771,0.00015,2]
[392967217,1762186236746,-157050.96989044,0.00015,2]
[392967229,1762186238932,-331.00000005,0.00015,2]
[392967230,1762186238945,-2644257.02085499,0.00015,2]
[392967231,1762186238957,-430.47651964,0.00015,2]
[392967232,1762186238969,-604.0,0.00015,2]
[392967233,1762186239033,-117517.71089213,0.00015,2]
[392967320,1762186239852,-1136410.88844059,0.00015,2]
[392967322,1762186239866,-424.27099997,0.00015,2]
[392967325,1762186239878,-1761.20351702,0.00015,2]
[392967327,1762186239902,-1502.9983896,0.00015,2]
[392967335,1762186239975,-2199.60887344,0.00015,2]
[392967338,1762186239987,-404.8,0.00015,2]
[392967340,1762186239999,-1119.69160082,0.00015,2]
[392967342,1762186240011,-2981.511028,0.00015,2]
[392967345,1762186240025,-56692.5106092,0.00015,2]
[392967367,1762186240257,-849.79402348,0.00015,2]
[392967370,1762186240268,-699.58053559,0.00015,2]
[392967468,1762186242884,-37564.77322237,0.00015,2]
[392967471,1762186242976,-1445.47135272,0.00015,2]
[392967472,1762186242987,-338.9968582,0.00015,2]
[392967510,1762186246061,-212.65870243,0.00014853,2]
[392967511,1762186246071,-264.94138311,0.00014853,2]
[392967512,1762186246080,-357.69991381,0.00014968,2]
[392967513,1762186246091,-281.77971604,0.00014968,2]
[392967514,1762186246103,-157.12975941,0.00014968,2]
[392967515,1762186246111,-947.87025059,0.00015,2]
[392967516,1762186246122,-906.94256,0.00015,2]
[392967524,1762186384543,453.0,0.0002739,120]
[392967540,1762187020171,-665.0,0.00014523,2]
[392967548,1762187117150,150.0,0.00013488,2]
[392967549,1762187128909,150.0,0.00013488,2]
[392967552,1762187213093,610.0,0.00013998,2]
[392967620,1762187431931,-2326.27073005,0.000145,2]
[392967621,1762187431942,-492.63427921,0.000145,2]
[392967622,1762187431953,-431.6888,0.000145,2]
[392967623,1762187431965,-207.46437466,0.000145,2]
[392967624,1762187431974,-74.82262514,0.00014522,2]
[392967625,1762187432011,-225.17737486,0.00014522,2]
[392967626,1762187432020,-73.27737514,0.00014522,2]
[392967627,1762187432032,-1126.72262486,0.00014522,2]
[392967628,1762187432041,-300.0,0.00014522,2]
[392967629,1762187432051,-300.0,0.00014522,2]
[392967630,1762187432061,-300.0,0.00014522,2]
[392967631,1762187432070,-11874.45,0.00014523,2]
[392967632,1762187432080,-221.6410156,0.00014527,2]
[392967633,1762187432090,-300.0,0.00014563,2]
[392967634,1762187432099,-672.44815368,0.00014631,2]
[392967635,1762187432108,-250.0,0.00014631,2]
[392967636,1762187432118,-150.0,0.00014799,2]
[392967637,1762187432128,-2329.12214748,0.000148,2]
[392967638,1762187432137,-2387.36156918,0.000148,2]
[392967639,1762187432146,-156.94154049,0.000148,2]
[392967640,1762187432155,-2466.4595,0.000148,2]
[392967642,1762187432164,-648.09117131,0.000148,2]
[392967643,1762187432174,-2500.0,0.000148,2]
[392967644,1762187432183,-2329.12214742,0.00014811,2]
[392967645,1762187432192,-648.09117123,0.00014811,2]
[392967646,1762187432202,-2329.12214742,0.00014822,2]
[392967647,1762187432211,-648.09117123,0.00014822,2]
[392967649,1762187432221,-2329.12214742,0.00014833,2]
[392967651,1762187432232,-648.09117123,0.00014833,2]
[392967653,1762187432244,-2329.12214742,0.00014844,2]
[392967655,1762187432253,-648.09117123,0.00014844,2]
[392967657,1762187432262,-185.45896817,0.00014849,2]
[392967659,1762187432272,-500.0,0.00014849,2]
[392967663,1762187432282,-500.0,0.00014849,2]
[392967666,1762187432293,-500.0,0.00014849,2]
[392967669,1762187432303,-500.0,0.00014849,2]
[392967672,1762187432313,-500.0,0.00014849,2]
[392967675,1762187432323,-500.0,0.00014849,2]
[392967677,1762187432332,-500.0,0.00014849,2]
[392967679,1762187432341,-500.0,0.00014849,2]
[392967681,1762187432350,-500.0,0.00014849,2]
[392967683,1762187432359,-500.0,0.00014849,2]
[392967686,1762187432369,-500.0,0.00014849,2]
[392967687,1762187432380,-432.90645919,0.00014849,2]
[392967689,1762187432389,-500.0,0.00014849,2]
[392967691,1762187432398,-500.0,0.00014849,2]
[392967692,1762187432407,-500.0,0.00014849,2]
[392967693,1762187432416,-500.0,0.00014849,2]
[392967694,1762187432425,-500.0,0.00014849,2]
[392967695,1762187432435,-500.0,0.00014849,2]
[392967696,1762187432444,-500.0,0.00014849,2]
[392967697,1762187432455,-500.0,0.00014849,2]
[392967698,1762187432465,-500.0,0.00014849,2]
[392967699,1762187432474,-500.0,0.00014849,2]
[392967701,1762187432483,-649.99999999,0.00014849,2]
[392967703,1762187432496,-106617.28420242,0.0001485,2]
[392967705,1762187432505,-4114.63032,0.0001485,2]
[392967707,1762187432516,-2329.12214742,0.00014856,2]
[392967709,1762187432529,-648.09117123,0.00014856,2]
[392967712,1762187432540,-2329.12214742,0.00014867,2]
[392967714,1762187432550,-648.09117123,0.00014867,2]
[392967716,1762187432560,-500.0,0.00014873,2]
[392967718,1762187432570,-309.91152023,0.00014873,2]
[392967719,1762187432580,-500.0,0.00014873,2]
[392967722,1762187432590,-500.0,0.00014873,2]
[392967723,1762187432603,-500.0,0.00014873,2]
[392967724,1762187432612,-501.35810388,0.00014873,2]
[392967725,1762187432621,-374.70917724,0.00014873,2]
[392967726,1762187432630,-180.19074985,0.00014873,2]
[392967727,1762187432640,-2329.12214742,0.00014878,2]
[392967728,1762187432649,-648.09117123,0.00014878,2]
[392967729,1762187432659,-2329.12214742,0.00014889,2]
[392967730,1762187432668,-648.09117123,0.00014889,2]
[392967731,1762187432678,-614.4,0.00014899,2]
[392967732,1762187432688,-536.59894521,0.000149,2]
[392967733,1762187432697,-555.2474,0.000149,2]
[392967734,1762187432706,-13987.79540017,0.000149,2]
[392967735,1762187432718,-55579.77346847,0.000149,2]
[392967736,1762187432729,-5532.36275584,0.000149,2]
[392967737,1762187432744,-53158.1187095,0.000149,2]
[392967738,1762187432755,-1427.00894998,0.000149,2]
[392967739,1762187432771,-308.87164907,0.000149,2]
[392967740,1762187434064,1600.0,0.00013967,2]
[392967752,1762187437889,-3192.9,0.000149,2]
[392967753,1762187437997,-1103.87488642,0.000149,2]
[392967838,1762187439871,-2128.2975434,0.0001475,2]
[392967840,1762187439883,-2834.5361566,0.0001475,2]
[392967842,1762187439893,-285709.29418055,0.000149,2]
[392967844,1762187439903,-1000.0,0.000149,2]
[392967846,1762187439913,-2329.12214742,0.000149,2]
[392967848,1762187439922,-193.41210666,0.000149,2]
[392967850,1762187439932,-648.09117123,0.000149,2]
[392967852,1762187439941,-238.2040326,0.000149,2]
[392967854,1762187439950,-335.61566092,0.000149,2]
[392967856,1762187439959,-501.78189786,0.00014973,2]
[392967858,1762187439969,-424.72455965,0.00014973,2]
[392967860,1762187439978,-500.0,0.00014973,2]
[392967862,1762187439987,-500.0,0.00014973,2]
[392967864,1762187439998,-159.91952,0.00014973,2]
[392967866,1762187440007,-500.28973591,0.00014973,2]
[392967868,1762187440016,-161.09233194,0.00014973,2]
[392967869,1762187440026,-504.26506691,0.00014973,2]
[392967870,1762187440035,-500.0,0.00014973,2]
[392967871,1762187440045,-560.97280974,0.00014973,2]
[392967873,1762187440054,-500.0,0.00014973,2]
[392967875,1762187440063,-330.71223307,0.00014973,2]
[392967876,1762187440073,-513.05694483,0.00014973,2]
[392967877,1762187440082,-229.67599749,0.00014973,2]
[392967878,1762187440091,-501.57121462,0.00014973,2]
[392967879,1762187440100,-500.6590224,0.00014973,2]
[392967880,1762187440110,-155.14402649,0.00014973,2]
[392967881,1762187440119,-500.0,0.00014973,2]
[392967882,1762187440129,-500.0,0.00014973,2]
[392967883,1762187440139,-210.23270036,0.00014973,2]
[392967884,1762187440149,-500.0,0.00014973,2]
[392967885,1762187440158,-500.0,0.00014973,2]
[392967886,1762187440167,-280.18631761,0.00014973,2]
[392967887,1762187440176,-501.38630198,0.00014973,2]
[392967888,1762187440186,-500.0,0.00014973,2]
[392967889,1762187440195,-500.0,0.00014973,2]
[392967890,1762187440205,-165.68947313,0.00014973,2]
[392967891,1762187440214,-321.53200453,0.00014973,2]
[392967892,1762187440223,-500.0,0.00014973,2]
[392967893,1762187440233,-500.0,0.00014973,2]
[392967894,1762187440245,-167.27802889,0.00014973,2]
[392967895,1762187440254,-500.0,0.00014973,2]
[392967896,1762187440263,-501.46660778,0.00014973,2]
[392967897,1762187440273,-500.0,0.00014973,2]
[392967898,1762187440282,-500.27032305,0.00014973,2]
[392967899,1762187440291,-500.85120301,0.00014973,2]
[392967900,1762187440301,-500.52001213,0.00014973,2]
[392967902,1762187440310,-504484.59324765,0.0001498,2]
[392967903,1762187440319,-151.0,0.00014991,2]
[392967904,1762187440329,-151.0,0.00014991,2]
[392967905,1762187440339,-151.0,0.00014991,2]
[392967906,1762187440348,-151.0,0.00014991,2]
[392967907,1762187440358,-151.0,0.00014991,2]
[392967908,1762187440367,-151.0,0.00014991,2]
[392967909,1762187440376,-151.0,0.00014991,2]
[392967910,1762187440386,-151.0,0.00014991,2]
[392967911,1762187440400,-151.0,0.00014991,2]
[392967912,1762187440412,-151.0,0.00014991,2]
[392967914,1762187440423,-151.0,0.00014991,2]
[392967916,1762187440432,-151.0,0.00014991,2]
[392967917,1762187440441,-151.0,0.00014991,2]
[392967918,1762187440450,-151.0,0.00014991,2]
[392967919,1762187440459,-151.0,0.00014991,2]
[392967920,1762187440468,-151.0,0.00014991,2]
[392967921,1762187440477,-151.0,0.00014991,2]
[392967922,1762187440486,-210.83722572,0.00014991,2]
[392967923,1762187440496,-255.46186739,0.00014991,2]
[392967924,1762187440506,-500.0,0.00014999,2]
[392967925,1762187440517,-500.0,0.00014999,2]
[392967926,1762187440529,-500.0,0.00014999,2]
[392967927,1762187440538,-500.0,0.00014999,2]
[392967928,1762187440547,-464.91611911,0.00014999,2]
[392967929,1762187440556,-666.0,0.00014999,2]
[392967930,1762187440566,-409842.22978673,0.00015,2]
[392967931,1762187440578,-1244.1148132,0.00015,2]
[392967932,1762187440676,-1330.08239876,0.00015,2]
[392967933,1762187440687,-5253.41323589,0.00015,2]
[392967934,1762187440709,-2689.15999044,0.00015,2]
[392967935,1762187440721,-268.07740025,0.00015,2]
[392967936,1762187440732,-2369.53192462,0.00015,2]
[392967937,1762187440744,-252.22859991,0.00015,2]
[392967938,1762187440791,-722.54248001,0.00015,2]
[392967955,1762187442859,-758.2,0.00015,2]
[392967956,1762187442916,-11449.85336388,0.00015,2]
[392967957,1762187442927,-184570.69072993,0.00015,2]
[392967958,1762187442938,-849.12836673,0.00015,2]
[392967959,1762187442974,-104367.72190753,0.00015,2]
[392967960,1762187442985,-4507.725034,0.00015,2]
[392967961,1762187442998,-55290.02646725,0.00015,2]
[392967962,1762187443084,-1806.65310988,0.00015,2]
[392967963,1762187443107,-30.6477,0.00015,2]
[392967964,1762187443119,-4963.05,0.00015,2]
[392967969,1762187446177,-284.04109822,0.00015,2]
[392967970,1762187446307,-883.08459362,0.00015,2]
[392967971,1762187446320,-2660.75,0.00015,2]
[392967972,1762187446332,-1676.3,0.00015,2]
[392967986,1762187594666,-666.0,0.00015643,3]
[392967993,1762187689520,170.77,0.00011222,2]
[392967995,1762187714935,-1326.94250205,0.00036873,30]
[392967996,1762187714965,-12442.55350075,0.00036873,30]
[392967997,1762187714993,-12442.55350075,0.00036873,30]
[392967998,1762187715021,-12442.55350075,0.00036873,30]
[392967999,1762187715047,-178.3622918,0.00036873,30]
[392968000,1762187715072,-200000.0,0.00036873,30]
[392968001,1762187715097,-100000.0,0.00036873,120]
[392968002,1762187715121,-224.548593,0.00036873,90]
[392968003,1762187715146,-500.0,0.00036873,120]
[392968004,1762187715170,-208.29,0.00036873,120]
[392968005,1762187715195,-651.0,0.00036873,120]
[392968006,1762187715221,-159.521095,0.00036873,120]
[392968007,1762187715248,-152.798462,0.00036873,120]
[392968008,1762187715273,-162.638664,0.00036873,120]
[392968009,1762187715300,-257.148635,0.00036873,120]
[392968010,1762187715329,-290.7708,0.00036873,120]
[392968011,1762187715357,-348.044379,0.00036873,120]
[392968012,1762187715383,-348.044379,0.00036873,120]
[392968013,1762187715408,-216.0,0.00036873,120]
[392968014,1762187715434,-518.56897065,0.00036873,30]
[392968015,1762187715465,-518.56897065,0.00036873,30]
[392968016,1762187715496,-518.56897065,0.00036873,30]
[392968017,1762187715523,-500.0,0.00036873,120]
[392968018,1762187715549,-596.05,0.00036873,120]
[392968019,1762187715576,-500.0,0.00036873,120]
[392968020,1762187715608,-500.0,0.00036873,120]
[392968021,1762187715635,-612.03952644,0.00036873,120]
[392968022,1762187715661,-503.09037848,0.00036873,120]
[392968023,1762187715687,-500.0,0.00036873,120]
[392968024,1762187715712,-502.08415772,0.00036873,120]
[392968025,1762187715736,-500.0,0.00036873,120]
[392968026,1762187715762,-500.0,0.00036873,120]
[392968027,1762187715786,-500.0,0.00036873,120]
[392968028,1762187715811,-502.01472691,0.00036873,120]
[392968029,1762187715836,-502.02776331,0.00036873,120]
[392968030,1762187715862,-503.17595306,0.00036873,120]
[392968031,1762187715887,-500.0,0.00036873,120]
[392968032,1762187715912,-2625.0,0.00036873,120]
[392968033,1762187715938,-2625.0,0.00036873,120]
[392968034,1762187715963,-2625.0,0.00036873,120]
[392968035,1762187715989,-2625.0,0.00036873,120]
[392968036,1762187716014,-500.0,0.00036873,120]
[392968037,1762187716039,-2625.0,0.00036873,120]
[392968038,1762187716064,-2625.0,0.00036873,120]
[392968039,1762187716088,-2625.0,0.00036873,120]
[392968040,1762187716113,-2625.0,0.00036873,120]
[392968041,1762187716139,-2625.0,0.00036873,120]
[392968042,1762187716165,-2625.0,0.00036873,120]
[392968043,1762187716191,-2625.0,0.00036873,120]
[392968044,1762187716217,-2625.0,0.00036873,120]
[392968045,1762187716245,-753.85,0.00036873,120]
[392968046,1762187716270,-2625.0,0.00036873,120]
[392968047,1762187716296,-753.85,0.00036873,120]
[392968048,1762187716321,-2625.0,0.00036873,120]
[392968049,1762187716347,-753.85,0.00036873,120]
[392968050,1762187716372,-2625.0,0.00036873,120]
[392968051,1762187716397,-753.85,0.00036873,120]
[392968052,1762187716423,-2625.0,0.00036873,120]
[392968053,1762187716449,-753.85,0.00036873,120]
[392968054,1762187716474,-2625.0,0.00036873,120]
[392968055,1762187716505,-753.85,0.00036873,120]
[392968056,1762187716531,-2625.0,0.00036873,120]
[392968057,1762187716560,-2625.0,0.00036873,120]
[392968058,1762187716589,-753.85,0.00036873,120]
[392968059,1762187716619,-2625.0,0.00036873,120]
[392968060,1762187716645,-500.0,0.00036873,120]
[392968061,1762187716672,-2625.0,0.00036873,120]
[392968062,1762187716699,-753.85,0.00036873,120]
[392968063,1762187716726,-753.85,0.00036873,120]
[392968064,1762187716758,-2625.0,0.00036873,120]
[392968065,1762187716784,-753.85,0.00036873,120]
[392968066,1762187716810,-2625.0,0.00036873,120]
[392968067,1762187716836,-753.85,0.00036873,120]
[392968068,1762187716861,-2625.0,0.00036873,120]
[392968069,1762187716887,-753.85,0.00036873,120]
[392968070,1762187716913,-753.85,0.00036873,120]
[392968071,1762187716939,-753.85,0.00036873,120]
[392968072,1762187716964,-753.85,0.00036873,120]
[392968073,1762187716993,-753.85,0.00036873,120]
[392968074,1762187717018,-158.55127572,0.00036873,120]
[392968075,1762187717044,-753.85,0.00036873,120]
[392968076,1762187717071,-753.85,0.00036873,120]
[392968077,1762187717097,-753.85,0.00036873,120]
[392968078,1762187717123,-753.85,0.00036873,120]
[392968079,1762187717148,-753.85,0.00036873,120]
[392968080,1762187717357,-753.85,0.00036873,120]
[392968081,1762187717385,-753.85,0.00036873,120]
[392968082,1762187717412,-753.86754979,0.00036873,120]
[392968083,1762187717438,-500.0,0.00036873,120]
[392968084,1762187717465,-500.0,0.00036873,120]
[392968085,1762187717495,-500.0,0.00036873,120]
[392968086,1762187717521,-500.0,0.00036873,120]
[392968087,1762187717546,-500.0,0.00036873,120]
[392968088,1762187717572,-500.0,0.00036873,120]
[392968089,1762187717600,-411.09776832,0.00036873,120]
[392968090,1762187717626,-500.0,0.00036873,120]
[392968091,1762187717652,-500.0,0.00036873,120]
[392968092,1762187717678,-500.0,0.00036873,120]
[392968093,1762187717708,-280.13518641,0.00036873,120]
[392968094,1762187717738,-500.0,0.00036873,120]
[392968095,1762187717764,-313.87497957,0.00036873,120]
[392968096,1762187717790,-503.29601419,0.00036873,120]
[392968097,1762187717816,-500.0,0.00036873,120]
[392968098,1762187717841,-500.0,0.00036873,120]
[392968099,1762187717867,-500.0,0.00036873,120]
[392968100,1762187717893,-500.0,0.00036873,120]
[392968101,1762187717919,-500.0,0.00036873,120]
[392968102,1762187717945,-500.0,0.00036873,120]
[392968103,1762187717971,-500.0,0.00036873,120]
[392968104,1762187717998,-500.0,0.00036873,120]
[392968105,1762187718023,-500.0,0.00036873,120]
[392968106,1762187718049,-500.0,0.00036873,120]
[392968107,1762187718075,-500.0,0.00036873,120]
[392968108,1762187718100,-500.0,0.00036873,120]
[392968109,1762187718128,-500.0,0.00036873,120]
[392968110,1762187718155,-500.0,0.00036873,120]
[392968111,1762187718182,-500.0,0.00036873,120]
[392968112,1762187718211,-500.0,0.00036873,120]
[392968113,1762187718238,-500.0,0.00036873,120]
[392968114,1762187718267,-426.34107205,0.00036873,120]
[392968115,1762187718295,-1095.08,0.00036873,120]
[392968116,1762187718322,-1095.08,0.00036873,120]
[392968117,1762187718350,-1095.08,0.00036873,120]
[392968118,1762187718378,-1095.08,0.00036873,120]
[392968119,1762187718406,-1095.08,0.00036873,120]
[392968120,1762187718435,-1095.08,0.00036873,120]
[392968121,1762187718465,-1095.08,0.00036873,120]
[392968122,1762187718494,-1095.08,0.00036873,120]
[392968123,1762187718522,-1095.08,0.00036873,120]
[392968124,1762187718551,-1095.08,0.00036873,120]
[392968125,1762187718579,-1095.08,0.00036873,120]
[392968126,1762187718610,-1095.08,0.00036873,120]
[392968127,1762187718640,-1095.08,0.00036873,120]
[392968128,1762187718670,-1095.08,0.00036873,120]
[392968129,1762187718700,-1095.08,0.00036873,120]
[392968130,1762187718728,-1095.08,0.00036873,120]
[392968131,1762187718759,-1095.08,0.00036873,120]
[392968132,1762187718788,-1095.08,0.00036873,120]
[392968133,1762187718818,-1095.08,0.00036873,120]
[392968134,1762187718849,-1095.08,0.00036873,120]
[392968135,1762187718880,-1095.08,0.00036873,120]
[392968136,1762187718909,-1095.08,0.00036873,120]
[392968137,1762187718939,-1095.08,0.00036873,120]
[392968138,1762187718969,-1095.26557641,0.00036873,120]
[392968139,1762187719000,-1287.64,0.00036873,120]
[392968140,1762187719031,-1287.64,0.00036873,120]
[392968141,1762187719062,-1287.64,0.00036873,120]
[392968142,1762187719090,-1287.64,0.00036873,120]
[392968143,1762187719119,-1287.64,0.00036873,120]
[392968144,1762187719149,-1287.64,0.00036873,120]
[392968145,1762187719178,-1287.64,0.00036873,120]
[392968146,1762187719208,-1287.64,0.00036873,120]
[392968147,1762187719241,-1287.64,0.00036873,120]